[Event "*** Titled Tuesday Blitz"]
[Site "Chess.com"]
[Date "2020.05.19"]
[Round "6"]
[White "AttilaTurzo"]
[Black "mshuaau0"]
[Result "1-0"]
[WhiteElo "2482"]
[BlackElo "2246"]
[TimeControl "180+1"]
[EndTime "13:10:10 PDT"]
[Termination "AttilaTurzo won by resignation"]

1. e4 {[%clk 0:03:00.9]} 1... e5 {[%clk 0:02:57.2]} 2. Nf3 {[%clk 0:02:59.3]}
2... Nc6 {[%clk 0:02:57]} 3. d4 {[%clk 0:02:59.3]} 3... exd4 {[%clk 0:02:53.9]}
4. Nxd4 {[%clk 0:03:00.2]} 4... Nf6 {[%clk 0:02:51.4]} 5. Nxc6 {[%clk
0:02:59.3]} 5... bxc6 {[%clk 0:02:51.4]} 6. e5 {[%clk 0:02:59.9]} 6... Qe7
{[%clk 0:02:51.4]} 7. Qe2 {[%clk 0:03:00.3]} 7... Nd5 {[%clk 0:02:51.5]} 8. c4
{[%clk 0:03:00.7]} 8... Nb6 {[%clk 0:02:51.8]} 9. g3 {[%clk 0:02:50.9]} 9... Ba6
{[%clk 0:02:47]} 10. b3 {[%clk 0:02:48.3]} 10... Qe6 {[%clk 0:02:45.4]} 11. Bg2
{[%clk 0:02:42.5]} 11... Bb4+ {[%clk 0:02:43.7]} 12. Bd2 {[%clk 0:02:41.8]}
12... Bxd2+ {[%clk 0:02:39.2]} 13. Nxd2 {[%clk 0:02:41]} 13... O-O-O {[%clk
0:02:38.7]} 14. O-O {[%clk 0:02:15.4]} 14... f6 {[%clk 0:02:16.1]} 15. Rfe1
{[%clk 0:02:07.6]} 15... Rhe8 {[%clk 0:02:15.1]} 16. f4 {[%clk 0:01:40.7]} 16...
Kb8 {[%clk 0:02:00.6]} 17. Qf2 {[%clk 0:01:31.2]} 17... fxe5 {[%clk 0:01:23.5]}
18. Rxe5 {[%clk 0:01:29.9]} 18... Qf6 {[%clk 0:01:23.6]} 19. Rae1 {[%clk
0:01:23.9]} 19... Rxe5 {[%clk 0:01:22.2]} 20. Rxe5 {[%clk 0:01:23.9]} 20... d6
{[%clk 0:01:18.3]} 21. Re1 {[%clk 0:01:10.7]} 21... c5 {[%clk 0:01:12.3]} 22.
Qf3 {[%clk 0:01:08.2]} 22... Qd4+ {[%clk 0:01:10.3]} 23. Qf2 {[%clk 0:01:04.8]}
23... Qxf2+ {[%clk 0:01:05.2]} 24. Kxf2 {[%clk 0:01:04.7]} 24... Bb7 {[%clk
0:01:05.6]} 25. Ne4 {[%clk 0:01:02.5]} 25... Re8 {[%clk 0:01:00.9]} 26. Re2
{[%clk 0:00:52.2]} 26... Nd7 {[%clk 0:00:58.1]} 27. g4 {[%clk 0:00:48]} 27... h6
{[%clk 0:00:47.9]} 28. Nc3 {[%clk 0:00:46.3]} 28... Rxe2+ {[%clk 0:00:47.1]} 29.
Nxe2 {[%clk 0:00:47.2]} 29... Bxg2 {[%clk 0:00:47]} 30. Kxg2 {[%clk 0:00:48.1]}
30... Nf6 {[%clk 0:00:40.6]} 31. Kf3 {[%clk 0:00:47.1]} 31... Kc8 {[%clk
0:00:39.6]} 32. g5 {[%clk 0:00:47]} 32... hxg5 {[%clk 0:00:37.4]} 33. fxg5
{[%clk 0:00:47.9]} 33... Nd7 {[%clk 0:00:36.9]} 34. h4 {[%clk 0:00:44.6]} 34...
g6 {[%clk 0:00:32.6]} 35. Nf4 {[%clk 0:00:39.9]} 35... Ne5+ {[%clk 0:00:32]} 36.
Ke4 {[%clk 0:00:39.1]} 36... Kd7 {[%clk 0:00:32.3]} 37. h5 {[%clk 0:00:36.5]}
37... gxh5 {[%clk 0:00:31.3]} 38. Nxh5 {[%clk 0:00:37.4]} 38... c6 {[%clk
0:00:27.9]} 39. Kf5 {[%clk 0:00:35.4]} 39... Ke7 {[%clk 0:00:27]} 40. g6 {[%clk
0:00:34.6]} 40... a5 {[%clk 0:00:23.4]} 41. Nf6 {[%clk 0:00:32.7]} 41... Nxg6
{[%clk 0:00:12.9]} 42. Kxg6 {[%clk 0:00:32.3]} 42... Ke6 {[%clk 0:00:13.4]} 43.
Ne4 {[%clk 0:00:11.3]} 43... Ke5 {[%clk 0:00:13.5]} 44. Nxd6 {[%clk 0:00:11]}
44... Kxd6 {[%clk 0:00:13.5]} 45. Kf6 {[%clk 0:00:11.4]} 45... Kd7 {[%clk
0:00:10.3]} 46. Ke5 {[%clk 0:00:08.8]} 46... Ke7 {[%clk 0:00:07.9]} 47. a3
{[%clk 0:00:08]} 47... Kd7 {[%clk 0:00:07.2]} 48. Kf6 {[%clk 0:00:07.8]} 48...
Kd6 {[%clk 0:00:07]} 49. Kf7 {[%clk 0:00:08.3]} 49... Kd7 {[%clk 0:00:07.3]} 50.
a4 {[%clk 0:00:06.7]} 50... Kd6 {[%clk 0:00:06.3]} 51. Ke8 {[%clk 0:00:07.1]}
51... Ke5 {[%clk 0:00:02.1]} 52. Kd7 {[%clk 0:00:08]} 52... Kd4 {[%clk
0:00:02.6]} 53. Kxc6 {[%clk 0:00:08.3]} 53... Kc3 {[%clk 0:00:03.5]} 54. Kxc5
{[%clk 0:00:08.7]} 54... Kxb3 {[%clk 0:00:04.4]} 55. Kb5 {[%clk 0:00:09.2]}
55... Kc3 {[%clk 0:00:03.9]} 56. c5 {[%clk 0:00:09.2]} 56... Kb3 {[%clk
0:00:04.4]} 57. Kxa5 {[%clk 0:00:08.9]} 57... Kc4 {[%clk 0:00:04]} 58. Kb6
{[%clk 0:00:09.8]} 1-0

[Event "*** Titled Tuesday Blitz"]
[Site "Chess.com"]
[Date "2020.05.19"]
[Round "6"]
[White "Gabrielian_Artur"]
[Black "wonderfultime"]
[Result "0-1"]
[WhiteElo "2718"]
[BlackElo "3001"]
[TimeControl "180+1"]
[EndTime "13:10:11 PDT"]
[Termination "wonderfultime won on time"]

1. e4 {[%clk 0:03:00.9]} 1... c5 {[%clk 0:02:59.9]} 2. Nc3 {[%clk 0:03:00.6]}
2... Nc6 {[%clk 0:02:58.2]} 3. Bb5 {[%clk 0:03:00.7]} 3... g6 {[%clk 0:02:54.5]}
4. Bxc6 {[%clk 0:03:00.2]} 4... bxc6 {[%clk 0:02:54.9]} 5. d3 {[%clk 0:03:00.4]}
5... Bg7 {[%clk 0:02:54.8]} 6. f4 {[%clk 0:02:57.8]} 6... d6 {[%clk 0:02:48.4]}
7. Nf3 {[%clk 0:02:57.9]} 7... Nh6 {[%clk 0:02:48.7]} 8. O-O {[%clk 0:02:57.6]}
8... f5 {[%clk 0:02:49]} 9. Qe1 {[%clk 0:02:57.6]} 9... O-O {[%clk 0:02:44.8]}
10. e5 {[%clk 0:02:57.5]} 10... Nf7 {[%clk 0:02:40.8]} 11. Be3 {[%clk
0:02:54.2]} 11... Rb8 {[%clk 0:02:38.4]} 12. Rb1 {[%clk 0:02:51]} 12... Re8
{[%clk 0:02:31.2]} 13. Qg3 {[%clk 0:02:43.1]} 13... Be6 {[%clk 0:02:27.7]} 14.
Rfe1 {[%clk 0:02:40.5]} 14... Qa5 {[%clk 0:02:24]} 15. a3 {[%clk 0:02:32.2]}
15... Qc7 {[%clk 0:02:05.9]} 16. Bf2 {[%clk 0:02:28.1]} 16... Qd7 {[%clk
0:02:02.8]} 17. h4 {[%clk 0:02:25.1]} 17... Nh6 {[%clk 0:01:55.7]} 18. h5 {[%clk
0:02:22.8]} 18... gxh5 {[%clk 0:01:51.7]} 19. Ng5 {[%clk 0:02:19.9]} 19... Ng4
{[%clk 0:01:47.7]} 20. Qh4 {[%clk 0:01:35.8]} 20... h6 {[%clk 0:01:31.5]} 21.
Nxe6 {[%clk 0:01:34.9]} 21... Qxe6 {[%clk 0:01:32.4]} 22. Qxh5 {[%clk
0:01:32.4]} 22... Qf7 {[%clk 0:01:26]} 23. Qxf7+ {[%clk 0:01:30.9]} 23... Kxf7
{[%clk 0:01:26.9]} 24. Bg3 {[%clk 0:01:17.4]} 24... h5 {[%clk 0:01:19.7]} 25.
Nd1 {[%clk 0:01:16.5]} 25... h4 {[%clk 0:01:09.5]} 26. Bxh4 {[%clk 0:01:10.3]}
26... dxe5 {[%clk 0:01:09.8]} 27. fxe5 {[%clk 0:01:05.9]} 27... Bxe5 {[%clk
0:01:10.7]} 28. Rxe5 {[%clk 0:00:54.7]} 28... Nxe5 {[%clk 0:01:10.6]} 29. Bg3
{[%clk 0:00:55]} 29... Kf6 {[%clk 0:01:00.3]} 30. Nc3 {[%clk 0:00:47.4]} 30...
Rg8 {[%clk 0:00:57.5]} 31. Bf4 {[%clk 0:00:25.7]} 31... Rg4 {[%clk 0:00:57.4]}
32. Rf1 {[%clk 0:00:12.2]} 32... Rbg8 {[%clk 0:00:57]} 33. Rf2 {[%clk
0:00:11.3]} 33... Ng6 {[%clk 0:00:50.9]} 34. Be3 {[%clk 0:00:11.4]} 34... Nh4
{[%clk 0:00:44]} 35. Ne4+ {[%clk 0:00:11.7]} 35... Kf7 {[%clk 0:00:42.2]} 36. g3
{[%clk 0:00:08.3]} 36... Ke8 {[%clk 0:00:42.6]} 37. Kf1 {[%clk 0:00:02.7]} 37...
fxe4 {[%clk 0:00:42]} 38. gxh4 {[%clk 0:00:03.2]} 38... exd3 {[%clk 0:00:41.5]}
39. cxd3 {[%clk 0:00:03.6]} 39... Rxh4 {[%clk 0:00:40.7]} 40. Bxc5 {[%clk
0:00:03.8]} 40... a6 {[%clk 0:00:30.2]} 41. Ke2 {[%clk 0:00:03.9]} 41... Rh5
{[%clk 0:00:28]} 42. d4 {[%clk 0:00:03.8]} 42... Rgh8 {[%clk 0:00:23.8]} 43. Kd3
{[%clk 0:00:03.8]} 43... Rh2 {[%clk 0:00:22.5]} 44. Rxh2 {[%clk 0:00:03.9]}
44... Rxh2 {[%clk 0:00:22]} 45. b3 {[%clk 0:00:04.4]} 45... Kd7 {[%clk 0:00:22]}
46. a4 {[%clk 0:00:04.2]} 46... Rh1 {[%clk 0:00:18.9]} 47. Kc4 {[%clk
0:00:03.5]} 47... Ke6 {[%clk 0:00:16.3]} 48. Kb4 {[%clk 0:00:03.3]} 48... Rh3
{[%clk 0:00:15.5]} 49. Ka5 {[%clk 0:00:03.4]} 49... Rxb3 {[%clk 0:00:14.6]} 50.
Kxa6 {[%clk 0:00:04.3]} 50... Kd5 {[%clk 0:00:14.8]} 51. Bxe7 {[%clk 0:00:03.5]}
51... Kxd4 {[%clk 0:00:15.4]} 52. a5 {[%clk 0:00:04]} 52... c5 {[%clk
0:00:15.3]} 53. Ka7 {[%clk 0:00:04.4]} 53... c4 {[%clk 0:00:15.4]} 54. a6 {[%clk
0:00:04.9]} 54... Kd5 {[%clk 0:00:15.1]} 55. Bf6 {[%clk 0:00:02.5]} 55... Kc6
{[%clk 0:00:15.3]} 0-1

[Event "*** Titled Tuesday Blitz"]
[Site "Chess.com"]
[Date "2020.05.19"]
[Round "6"]
[White "Megagigahiper3345"]
[Black "SanchezKelvin"]
[Result "1-0"]
[WhiteElo "2626"]
[BlackElo "2475"]
[TimeControl "180+1"]
[EndTime "13:10:11 PDT"]
[Termination "Megagigahiper3345 won by checkmate"]

1. d4 {[%clk 0:03:00.9]} 1... Nf6 {[%clk 0:02:58.6]} 2. c4 {[%clk 0:03:01.3]}
2... g6 {[%clk 0:02:54.6]} 3. Nc3 {[%clk 0:03:00.3]} 3... Bg7 {[%clk 0:02:54.1]}
4. e4 {[%clk 0:02:46.9]} 4... d6 {[%clk 0:02:53.9]} 5. Be2 {[%clk 0:02:46.8]}
5... O-O {[%clk 0:02:53.6]} 6. Be3 {[%clk 0:02:47.1]} 6... e5 {[%clk 0:02:51.6]}
7. d5 {[%clk 0:02:47.3]} 7... c6 {[%clk 0:02:49]} 8. g4 {[%clk 0:02:46.8]} 8...
cxd5 {[%clk 0:02:48.8]} 9. cxd5 {[%clk 0:02:46.5]} 9... Na6 {[%clk 0:02:47.6]}
10. h4 {[%clk 0:02:43.7]} 10... Nc5 {[%clk 0:02:47.5]} 11. f3 {[%clk 0:02:43.3]}
11... a5 {[%clk 0:02:45.5]} 12. h5 {[%clk 0:02:43]} 12... Bd7 {[%clk 0:02:40.4]}
13. Nh3 {[%clk 0:02:25.3]} 13... a4 {[%clk 0:02:36.1]} 14. Nf2 {[%clk
0:02:19.8]} 14... b5 {[%clk 0:02:34.4]} 15. Kf1 {[%clk 0:02:11.4]} 15... b4
{[%clk 0:02:33.6]} 16. Nb1 {[%clk 0:02:11.2]} 16... Qa5 {[%clk 0:02:29.2]} 17.
Kg2 {[%clk 0:02:08.9]} 17... Bb5 {[%clk 0:02:28.4]} 18. Nd2 {[%clk 0:02:06.5]}
18... Nfd7 {[%clk 0:02:25.8]} 19. hxg6 {[%clk 0:01:39.4]} 19... fxg6 {[%clk
0:02:23.4]} 20. Nc4 {[%clk 0:01:40]} 20... Bxc4 {[%clk 0:02:21.8]} 21. Bxc4
{[%clk 0:01:38.9]} 21... Rf7 {[%clk 0:02:21.2]} 22. Rh3 {[%clk 0:01:37.3]} 22...
Raf8 {[%clk 0:02:19.8]} 23. Qh1 {[%clk 0:01:30.7]} 23... Bh8 {[%clk 0:02:12.6]}
24. Qh2 {[%clk 0:01:29.3]} 24... Nb6 {[%clk 0:02:07.9]} 25. Be2 {[%clk
0:01:24.2]} 25... Qa7 {[%clk 0:01:46.2]} 26. Rh1 {[%clk 0:01:22.2]} 26... Bf6
{[%clk 0:01:42.7]} 27. g5 {[%clk 0:01:14.1]} 27... Bd8 {[%clk 0:01:41.8]} 28.
Ng4 {[%clk 0:01:12.5]} 28... Rg7 {[%clk 0:01:33.9]} 29. Rh6 {[%clk 0:00:52.5]}
29... Rff7 {[%clk 0:01:14.6]} 30. Qh4 {[%clk 0:00:31.7]} 30... Nbd7 {[%clk
0:00:58.3]} 31. Bb5 {[%clk 0:00:20.9]} 31... Nf8 {[%clk 0:00:53.8]} 32. Be8
{[%clk 0:00:20.3]} 32... Re7 {[%clk 0:00:50.3]} 33. Nf6+ {[%clk 0:00:19.5]}
33... Kh8 {[%clk 0:00:47.7]} 34. Bb5 {[%clk 0:00:17.5]} 34... b3 {[%clk
0:00:45.3]} 35. a3 {[%clk 0:00:17.3]} 35... Qa5 {[%clk 0:00:44.8]} 36. Be2
{[%clk 0:00:17]} 36... Ncd7 {[%clk 0:00:41.5]} 37. Rc1 {[%clk 0:00:15.5]} 37...
Qa8 {[%clk 0:00:40]} 38. Bb5 {[%clk 0:00:14.4]} 38... Ref7 {[%clk 0:00:38.7]}
39. Ne8 {[%clk 0:00:11.6]} 39... Rg8 {[%clk 0:00:36.8]} 40. Nc7 {[%clk
0:00:10.2]} 40... Qb8 {[%clk 0:00:32.7]} 41. Bxd7 {[%clk 0:00:08.2]} 41... Rxd7
{[%clk 0:00:29.9]} 42. Ne6 {[%clk 0:00:07.8]} 42... Rf7 {[%clk 0:00:28.4]} 43.
Nxd8 {[%clk 0:00:05.5]} 43... Qxd8 {[%clk 0:00:28]} 44. Rc6 {[%clk 0:00:06.4]}
44... Rc7 {[%clk 0:00:20.9]} 45. Qh1 {[%clk 0:00:05.8]} 45... Rgg7 {[%clk
0:00:20.7]} 46. Qc1 {[%clk 0:00:05.6]} 46... Rxc6 {[%clk 0:00:20.8]} 47. dxc6
{[%clk 0:00:06.5]} 47... Rc7 {[%clk 0:00:20.5]} 48. f4 {[%clk 0:00:04.7]} 48...
exf4 {[%clk 0:00:20.1]} 49. Bd4+ {[%clk 0:00:04.6]} 49... Kg8 {[%clk 0:00:19.8]}
50. Qc4+ {[%clk 0:00:05.2]} 50... Rf7 {[%clk 0:00:18.2]} 51. Qd5 {[%clk
0:00:05.5]} 51... Qc8 {[%clk 0:00:16.9]} 52. Kf3 {[%clk 0:00:05.4]} 52... Ne6
{[%clk 0:00:17]} 53. Bf6 {[%clk 0:00:04.4]} 53... Nc7 {[%clk 0:00:16.6]} 54.
Qxd6 {[%clk 0:00:04.3]} 54... Qa8 {[%clk 0:00:13.2]} 55. e5 {[%clk 0:00:04.3]}
55... Ne8 {[%clk 0:00:12.3]} 56. Qd5 {[%clk 0:00:03.8]} 56... Nc7 {[%clk
0:00:12.1]} 57. Qd6 {[%clk 0:00:03]} 57... Nb5 {[%clk 0:00:12]} 58. Qc5 {[%clk
0:00:03.3]} 58... Na7 {[%clk 0:00:11.2]} 59. e6 {[%clk 0:00:03.8]} 59... Rc7
{[%clk 0:00:08.6]} 60. e7 {[%clk 0:00:03.7]} 60... Rc8 {[%clk 0:00:08]} 61. Qd5#
{[%clk 0:00:04]} 1-0

[Event "*** Titled Tuesday Blitz"]
[Site "Chess.com"]
[Date "2020.05.19"]
[Round "6"]
[White "AminMolaei"]
[Black "Onischuk_V"]
[Result "0-1"]
[WhiteElo "2639"]
[BlackElo "2862"]
[TimeControl "180+1"]
[EndTime "13:10:12 PDT"]
[Termination "Onischuk_V won by resignation"]

1. d4 {[%clk 0:03:00.9]} 1... d6 {[%clk 0:02:59.5]} 2. c4 {[%clk 0:02:59.9]}
2... e5 {[%clk 0:02:59.4]} 3. Nf3 {[%clk 0:02:59.3]} 3... e4 {[%clk 0:02:58.7]}
4. Ng5 {[%clk 0:02:59.3]} 4... Nf6 {[%clk 0:02:58.6]} 5. Nc3 {[%clk 0:02:58.9]}
5... Qe7 {[%clk 0:02:58.8]} 6. Qc2 {[%clk 0:02:36.3]} 6... Bf5 {[%clk
0:02:45.4]} 7. f3 {[%clk 0:01:59]} 7... Nc6 {[%clk 0:02:43.8]} 8. d5 {[%clk
0:01:47.5]} 8... Nb8 {[%clk 0:02:29]} 9. Ngxe4 {[%clk 0:01:41.9]} 9... Bxe4
{[%clk 0:02:23.3]} 10. Nxe4 {[%clk 0:01:40.8]} 10... Nxe4 {[%clk 0:02:23.1]} 11.
Qxe4 {[%clk 0:01:41.7]} 11... Qxe4 {[%clk 0:02:22.7]} 12. fxe4 {[%clk
0:01:42.6]} 12... Nd7 {[%clk 0:02:22.9]} 13. Be3 {[%clk 0:01:35.9]} 13... Be7
{[%clk 0:02:21.2]} 14. Bd4 {[%clk 0:01:32.7]} 14... Bf6 {[%clk 0:02:21.1]} 15.
e3 {[%clk 0:01:32.9]} 15... Nc5 {[%clk 0:01:50]} 16. Bxf6 {[%clk 0:01:25.6]}
16... gxf6 {[%clk 0:01:49.7]} 17. b4 {[%clk 0:01:21]} 17... Nd7 {[%clk
0:01:47.3]} 18. Be2 {[%clk 0:01:09.9]} 18... a5 {[%clk 0:01:46.5]} 19. b5 {[%clk
0:00:59]} 19... b6 {[%clk 0:01:45.2]} 20. Rf1 {[%clk 0:00:53.9]} 20... Ke7
{[%clk 0:01:45.2]} 21. Kd2 {[%clk 0:00:52.6]} 21... Rag8 {[%clk 0:01:45.2]} 22.
g3 {[%clk 0:00:52.1]} 22... h5 {[%clk 0:01:44.8]} 23. Rf4 {[%clk 0:00:50.6]}
23... Ne5 {[%clk 0:01:43]} 24. Raf1 {[%clk 0:00:48.5]} 24... Rh6 {[%clk
0:01:40.6]} 25. Rh4 {[%clk 0:00:46]} 25... Rg5 {[%clk 0:01:36.3]} 26. Rf5 {[%clk
0:00:44.2]} 26... Kf8 {[%clk 0:01:23.1]} 27. Kc3 {[%clk 0:00:42.6]} 27... Kg7
{[%clk 0:01:09]} 28. Rxh5 {[%clk 0:00:40.4]} 28... Rhg6 {[%clk 0:00:53.8]} 29.
Rh4 {[%clk 0:00:29.8]} 29... Nd7 {[%clk 0:00:51.1]} 30. Kd4 {[%clk 0:00:25]}
30... Nc5 {[%clk 0:00:48.2]} 31. Rhf4 {[%clk 0:00:20.1]} 31... Nd7 {[%clk
0:00:46.9]} 32. g4 {[%clk 0:00:19.3]} 32... Rh6 {[%clk 0:00:46]} 33. Rf2 {[%clk
0:00:17.7]} 33... Ne5 {[%clk 0:00:44.1]} 34. Rg2 {[%clk 0:00:14.4]} 34... Rh3
{[%clk 0:00:42.3]} 35. Rgf2 {[%clk 0:00:12.2]} 35... Rg6 {[%clk 0:00:41.1]} 36.
Rg2 {[%clk 0:00:11.9]} 36... Rgh6 {[%clk 0:00:40.8]} 37. g5 {[%clk 0:00:10.3]}
37... fxg5 {[%clk 0:00:40.1]} 38. Rfxg5+ {[%clk 0:00:11.2]} 38... Rg6 {[%clk
0:00:40.3]} 39. Rxg6+ {[%clk 0:00:11]} 39... fxg6 {[%clk 0:00:40.3]} 40. Bg4
{[%clk 0:00:10.3]} 40... Rh8 {[%clk 0:00:39.3]} 41. Be6 {[%clk 0:00:10.1]} 41...
Rf8 {[%clk 0:00:39.1]} 42. h4 {[%clk 0:00:09.6]} 42... Kh6 {[%clk 0:00:36.9]}
43. Bg4 {[%clk 0:00:07.2]} 43... Rf1 {[%clk 0:00:34.5]} 44. Be2 {[%clk
0:00:07.1]} 44... Ra1 {[%clk 0:00:33.6]} 45. Bg4 {[%clk 0:00:07]} 45... Rc1
{[%clk 0:00:32.5]} 46. Be2 {[%clk 0:00:06.4]} 46... Rc2 {[%clk 0:00:24.5]} 47.
h5 {[%clk 0:00:05]} 47... gxh5 {[%clk 0:00:22]} 48. Rh2 {[%clk 0:00:05.5]} 48...
Nf3+ {[%clk 0:00:21.6]} 49. Kd3 {[%clk 0:00:05.6]} 49... Nxh2 {[%clk 0:00:16.3]}
50. Kxc2 {[%clk 0:00:05.7]} 50... Ng4 {[%clk 0:00:15]} 51. Kd3 {[%clk
0:00:03.5]} 51... Ne5+ {[%clk 0:00:14.4]} 52. Kd4 {[%clk 0:00:03.7]} 52... Kg5
{[%clk 0:00:14.6]} 53. Kc3 {[%clk 0:00:03.8]} 53... h4 {[%clk 0:00:14.9]} 54.
Kd2 {[%clk 0:00:04.1]} 54... h3 {[%clk 0:00:15]} 55. Bf1 {[%clk 0:00:03.5]}
55... h2 {[%clk 0:00:15.3]} 56. Bg2 {[%clk 0:00:03.7]} 56... Kg4 {[%clk
0:00:15.9]} 57. Kc3 {[%clk 0:00:03.9]} 57... Kg3 {[%clk 0:00:16.3]} 58. Bh1
{[%clk 0:00:04.5]} 58... Kf2 {[%clk 0:00:16.7]} 59. Kd4 {[%clk 0:00:04.6]} 59...
Kg1 {[%clk 0:00:16.4]} 0-1

[Event "*** Titled Tuesday Blitz"]
[Site "Chess.com"]
[Date "2020.05.19"]
[Round "6"]
[White "NikolaGry"]
[Black "penguingm1"]
[Result "1-0"]
[WhiteElo "2630"]
[BlackElo "2857"]
[TimeControl "180+1"]
[EndTime "13:10:12 PDT"]
[Termination "NikolaGry won on time"]

1. b3 {[%clk 0:03:00.9]} 1... d5 {[%clk 0:02:59.5]} 2. Bb2 {[%clk 0:03:00.9]}
2... c5 {[%clk 0:02:59.8]} 3. Nf3 {[%clk 0:03:00.3]} 3... Nc6 {[%clk 0:02:59.4]}
4. e3 {[%clk 0:03:00.3]} 4... Nf6 {[%clk 0:03:00.1]} 5. Bb5 {[%clk 0:02:59.4]}
5... Qb6 {[%clk 0:03:00.8]} 6. Qe2 {[%clk 0:02:47.3]} 6... g6 {[%clk 0:02:57.4]}
7. Bxf6 {[%clk 0:02:29.1]} 7... exf6 {[%clk 0:02:57.4]} 8. Nc3 {[%clk
0:02:28.7]} 8... Be6 {[%clk 0:02:54.9]} 9. e4 {[%clk 0:02:24.5]} 9... dxe4
{[%clk 0:02:37.5]} 10. Qxe4 {[%clk 0:02:22.8]} 10... O-O-O {[%clk 0:02:37.4]}
11. Bxc6 {[%clk 0:02:17.8]} 11... bxc6 {[%clk 0:02:33.8]} 12. O-O {[%clk
0:02:10.5]} 12... Bd6 {[%clk 0:02:34.1]} 13. a4 {[%clk 0:01:50.1]} 13... g5
{[%clk 0:02:32]} 14. a5 {[%clk 0:01:47.3]} 14... Qc7 {[%clk 0:02:31.4]} 15. g3
{[%clk 0:01:27.1]} 15... h5 {[%clk 0:02:29.5]} 16. d4 {[%clk 0:01:11]} 16... g4
{[%clk 0:00:54.1]} 17. Nh4 {[%clk 0:00:56.5]} 17... cxd4 {[%clk 0:00:52.7]} 18.
Ne2 {[%clk 0:00:52.9]} 18... Be5 {[%clk 0:00:18.3]} 19. Rfd1 {[%clk 0:00:48]}
19... Rd5 {[%clk 0:00:18.3]} 20. Rd3 {[%clk 0:00:24.9]} 20... Rhd8 {[%clk
0:00:17.1]} 21. b4 {[%clk 0:00:25.1]} 21... Rb5 {[%clk 0:00:14.3]} 22. Nxd4
{[%clk 0:00:20.9]} 22... Rxb4 {[%clk 0:00:11.1]} 23. c3 {[%clk 0:00:21.1]} 23...
Rc4 {[%clk 0:00:08.9]} 24. Nhf5 {[%clk 0:00:17.1]} 24... Rd5 {[%clk 0:00:08.3]}
25. Ne3 {[%clk 0:00:15.5]} 25... f5 {[%clk 0:00:05.9]} 26. Nexf5 {[%clk
0:00:11.8]} 26... c5 {[%clk 0:00:04.9]} 27. Ne3 {[%clk 0:00:11.1]} 27... cxd4
{[%clk 0:00:04.8]} 28. Nxd5 {[%clk 0:00:10.4]} 28... Qd6 {[%clk 0:00:03.4]} 29.
cxd4 {[%clk 0:00:10.3]} 29... Bg7 {[%clk 0:00:01.4]} 30. Ne3 {[%clk 0:00:08.5]}
30... Rc7 {[%clk 0:00:01.3]} 31. Rb1 {[%clk 0:00:07.6]} 31... Kd8 {[%clk
0:00:01.7]} 32. d5 {[%clk 0:00:07.7]} 32... Bd7 {[%clk 0:00:02]} 33. Re1 {[%clk
0:00:05.1]} 33... Bf6 {[%clk 0:00:02.4]} 34. Qh7 {[%clk 0:00:03.1]} 34... Be8
{[%clk 0:00:02.4]} 35. Qxh5 {[%clk 0:00:03.1]} 35... Qb4 {[%clk 0:00:02.6]} 36.
Rf1 {[%clk 0:00:01.9]} 36... Bd7 {[%clk 0:00:03.1]} 37. Qh7 {[%clk 0:00:01.2]}
37... Ke7 {[%clk 0:00:03.4]} 38. Qg8 {[%clk 0:00:02.1]} 38... Rc5 {[%clk
0:00:03]} 39. Nf5+ {[%clk 0:00:02.8]} 39... Bxf5 {[%clk 0:00:03.1]} 40. Re3+
{[%clk 0:00:03.7]} 40... Kd6 {[%clk 0:00:03.3]} 41. Qxf7 {[%clk 0:00:04]} 41...
Qd4 {[%clk 0:00:04.1]} 42. Qe8 {[%clk 0:00:03.7]} 42... Kxd5 {[%clk 0:00:04.3]}
43. Qf7+ {[%clk 0:00:03.4]} 43... Kd6 {[%clk 0:00:04.4]} 44. Rfe1 {[%clk
0:00:04]} 44... Rd5 {[%clk 0:00:04.8]} 45. Re6+ {[%clk 0:00:04.5]} 45... Bxe6
{[%clk 0:00:05.3]} 46. Qxe6+ {[%clk 0:00:04.9]} 46... Kc5 {[%clk 0:00:06.2]} 47.
Rc1+ {[%clk 0:00:05.5]} 47... Kb4 {[%clk 0:00:06.2]} 48. Qc6 {[%clk 0:00:06.1]}
48... Qd3 {[%clk 0:00:04.3]} 49. Qb7+ {[%clk 0:00:05.2]} 49... Ka4 {[%clk
0:00:02.2]} 50. Qc6+ {[%clk 0:00:05.7]} 50... Kb3 {[%clk 0:00:01.6]} 51. Qxf6
{[%clk 0:00:05.2]} 51... Qd2 {[%clk 0:00:01.7]} 52. Ra1 {[%clk 0:00:05.6]} 52...
Kb4 {[%clk 0:00:02.1]} 53. Qc6 {[%clk 0:00:06]} 53... a6 {[%clk 0:00:02.3]} 54.
Qa4+ {[%clk 0:00:06.6]} 54... Kc5 {[%clk 0:00:02.6]} 55. Qa3+ {[%clk 0:00:06.6]}
55... Kc6 {[%clk 0:00:03.1]} 56. Rc1+ {[%clk 0:00:07.5]} 56... Kd7 {[%clk
0:00:03.3]} 57. Qc3 {[%clk 0:00:07.5]} 57... Qe2 {[%clk 0:00:03.3]} 58. Qc6+
{[%clk 0:00:06.7]} 58... Ke7 {[%clk 0:00:03.9]} 59. Qxd5 {[%clk 0:00:07.2]} 1-0